[Event "Early-Titled-Tuesday-Blitz-September-26-2023"]
[Site "Chess.com"]
[Date "2023.09.26"]
[Round "1"]
[White "KamlaPasand"]
[Black "Jagerrmeisterr"]
[Result "1-0"]
[WhiteElo "2432"]
[BlackElo "2687"]
[TimeControl "180+1"]
[EndTime "8:06:15 PDT"]
[Termination "KamlaPasand won by resignation"]

1. e4 {[%clk 0:03:00.9]} 1... c6 {[%clk 0:02:57.4]} 2. d4 {[%clk 0:02:50.3]}
2... d5 {[%clk 0:02:57.4]} 3. Nc3 {[%clk 0:02:50.7]} 3... g6 {[%clk 0:02:55.4]}
4. exd5 {[%clk 0:02:49.6]} 4... cxd5 {[%clk 0:02:55.3]} 5. Bb5+ {[%clk
0:02:50.5]} 5... Bd7 {[%clk 0:02:53.4]} 6. Bxd7+ {[%clk 0:02:50.6]} 6... Qxd7
{[%clk 0:02:53.6]} 7. Nf3 {[%clk 0:02:51.2]} 7... Nc6 {[%clk 0:02:54]} 8. O-O
{[%clk 0:02:50]} 8... Bg7 {[%clk 0:02:54.2]} 9. Bf4 {[%clk 0:02:50.6]} 9... Nf6
{[%clk 0:02:40.4]} 10. Ne5 {[%clk 0:02:47.2]} 10... Qf5 {[%clk 0:02:38.5]} 11.
Bg3 {[%clk 0:02:41.7]} 11... O-O {[%clk 0:02:36.6]} 12. Qd2 {[%clk 0:02:36.5]}
12... Nb4 {[%clk 0:02:25.6]} 13. Rac1 {[%clk 0:02:34.2]} 13... Rac8 {[%clk
0:02:25.7]} 14. a3 {[%clk 0:02:33.9]} 14... Nc6 {[%clk 0:02:26]} 15. Rfe1 {[%clk
0:02:29.5]} 15... Rfe8 {[%clk 0:02:26.2]} 16. f3 {[%clk 0:02:25.9]} 16... Nh5
{[%clk 0:02:08.4]} 17. Nxd5 {[%clk 0:02:24.4]} 17... Nxg3 {[%clk 0:02:03.1]} 18.
hxg3 {[%clk 0:02:15.8]} 18... Nxe5 {[%clk 0:01:28.2]} 19. dxe5 {[%clk
0:02:15.4]} 19... h5 {[%clk 0:01:24.4]} 20. Qf4 {[%clk 0:02:10.3]} 20... Qe6
{[%clk 0:01:20.2]} 21. Nb4 {[%clk 0:02:08.7]} 21... Rc4 {[%clk 0:01:18]} 22. Re4
{[%clk 0:02:07.3]} 22... Rec8 {[%clk 0:01:17.5]} 23. c3 {[%clk 0:02:00.6]} 23...
Kh7 {[%clk 0:01:17.5]} 24. Rce1 {[%clk 0:02:00.3]} 24... Bh6 {[%clk 0:01:17.3]}
25. Qh4 {[%clk 0:01:59.1]} 25... a5 {[%clk 0:01:14.3]} 26. Nd3 {[%clk
0:01:58.2]} 26... b5 {[%clk 0:01:03.7]} 27. g4 {[%clk 0:01:55.7]} 27... hxg4
{[%clk 0:01:02.6]} 28. fxg4 {[%clk 0:01:54.3]} 28... g5 {[%clk 0:01:00.8]} 29.
Qh5 {[%clk 0:01:52.8]} 29... Kg7 {[%clk 0:00:59.6]} 30. Qh3 {[%clk 0:01:51.7]}
30... Qd5 {[%clk 0:00:59.3]} 31. Qf3 {[%clk 0:01:51.4]} 31... Rd8 {[%clk
0:00:58.7]} 32. Nf2 {[%clk 0:01:51.1]} 32... Qd2 {[%clk 0:00:55.7]} 33. R4e2
{[%clk 0:01:50.6]} 33... Qf4 {[%clk 0:00:49.6]} 34. Ne4 {[%clk 0:01:49.8]} 34...
Qxe5 {[%clk 0:00:46]} 35. Ng3 {[%clk 0:01:47.4]} 35... Qc5+ {[%clk 0:00:46.2]}
36. Kf1 {[%clk 0:01:45.7]} 36... e6 {[%clk 0:00:43.8]} 37. Ne4 {[%clk
0:01:43.7]} 37... Qe5 {[%clk 0:00:40.2]} 38. Kg1 {[%clk 0:01:42.7]} 38... Qf4
{[%clk 0:00:39.1]} 39. Qxf4 {[%clk 0:01:41.9]} 39... gxf4 {[%clk 0:00:40]} 40.
g5 {[%clk 0:01:42.5]} 40... Bxg5 {[%clk 0:00:32.3]} 41. Nxg5 {[%clk 0:01:43.4]}
41... Rd5 {[%clk 0:00:33.1]} 42. Nh3 {[%clk 0:01:41.4]} 42... b4 {[%clk
0:00:32.7]} 43. axb4 {[%clk 0:01:40.5]} 43... axb4 {[%clk 0:00:33.1]} 44. Re4
{[%clk 0:01:40.9]} 44... Rxe4 {[%clk 0:00:32.7]} 45. Rxe4 {[%clk 0:01:41.2]}
45... bxc3 {[%clk 0:00:33.4]} 46. bxc3 {[%clk 0:01:41.5]} 46... e5 {[%clk
0:00:34.1]} 47. Nf2 {[%clk 0:01:40.2]} 47... f5 {[%clk 0:00:34.6]} 48. Re1
{[%clk 0:01:40]} 48... Kf6 {[%clk 0:00:35.3]} 49. Kf1 {[%clk 0:01:39.5]} 49...
e4 {[%clk 0:00:35.7]} 50. c4 {[%clk 0:01:39.7]} 50... Rd4 {[%clk 0:00:35.6]} 51.
Rc1 {[%clk 0:01:39.4]} 51... Ke6 {[%clk 0:00:32.8]} 52. c5 {[%clk 0:01:39.4]}
52... Kd7 {[%clk 0:00:33.5]} 53. c6+ {[%clk 0:01:39.6]} 53... Kc7 {[%clk
0:00:34.1]} 54. Nh3 {[%clk 0:01:39.3]} 54... e3 {[%clk 0:00:33.8]} 55. Ke2
{[%clk 0:01:38.7]} 55... Rd2+ {[%clk 0:00:34.2]} 56. Kf3 {[%clk 0:01:38.4]}
56... Rf2+ {[%clk 0:00:34.4]} 57. Nxf2 {[%clk 0:01:38.2]} 1-0

[Event "Early-Titled-Tuesday-Blitz-September-26-2023"]
[Site "Chess.com"]
[Date "2023.09.26"]
[Round "1"]
[White "Sattarov_Bobur"]
[Black "Eloist"]
[Result "1-0"]
[WhiteElo "2849"]
[BlackElo "2491"]
[TimeControl "180+1"]
[EndTime "8:06:19 PDT"]
[Termination "Sattarov_Bobur won on time"]

1. e4 {[%clk 0:03:00.9]} 1... e6 {[%clk 0:02:59.9]} 2. d4 {[%clk 0:02:56.1]}
2... d5 {[%clk 0:03:00.1]} 3. e5 {[%clk 0:02:56.4]} 3... c5 {[%clk 0:02:59.9]}
4. c3 {[%clk 0:02:57]} 4... Qb6 {[%clk 0:03:00]} 5. Nf3 {[%clk 0:02:57.2]} 5...
Bd7 {[%clk 0:03:00.3]} 6. Bd3 {[%clk 0:02:48.6]} 6... cxd4 {[%clk 0:02:58.9]} 7.
O-O {[%clk 0:02:48.2]} 7... dxc3 {[%clk 0:02:51.9]} 8. Nxc3 {[%clk 0:02:46.1]}
8... Ne7 {[%clk 0:02:51.1]} 9. Be3 {[%clk 0:02:38.4]} 9... Qd8 {[%clk
0:02:48.3]} 10. h4 {[%clk 0:02:33.5]} 10... Nbc6 {[%clk 0:02:39.2]} 11. h5
{[%clk 0:02:27.4]} 11... h6 {[%clk 0:02:35]} 12. Rc1 {[%clk 0:02:25.5]} 12...
Nc8 {[%clk 0:02:28.2]} 13. Re1 {[%clk 0:02:08.5]} 13... Be7 {[%clk 0:02:26.3]}
14. Qd2 {[%clk 0:02:07]} 14... Nb6 {[%clk 0:02:24.9]} 15. b3 {[%clk 0:01:56.9]}
15... Ba3 {[%clk 0:02:21.5]} 16. Nb5 {[%clk 0:01:54.3]} 16... Bb4 {[%clk
0:02:17]} 17. Nd6+ {[%clk 0:01:49.2]} 17... Bxd6 {[%clk 0:02:16.1]} 18. exd6
{[%clk 0:01:50.1]} 18... Qf6 {[%clk 0:01:53.4]} 19. Bf4 {[%clk 0:01:46.4]} 19...
O-O {[%clk 0:01:39.7]} 20. Bb1 {[%clk 0:01:37.9]} 20... Rfe8 {[%clk 0:00:30.6]}
21. Ne5 {[%clk 0:01:35.7]} 21... Nxe5 {[%clk 0:00:23.8]} 22. Bxe5 {[%clk
0:01:36.6]} 22... Qg5 {[%clk 0:00:22.6]} 23. Qd3 {[%clk 0:01:33.2]} 23... f5
{[%clk 0:00:19.7]} 24. Rc7 {[%clk 0:01:28.5]} 24... Rac8 {[%clk 0:00:17.4]} 25.
Qc3 {[%clk 0:01:20.2]} 25... Rxc7 {[%clk 0:00:14]} 26. Qxc7 {[%clk 0:01:21.1]}
26... Rc8 {[%clk 0:00:12.6]} 27. Qxb7 {[%clk 0:01:17]} 27... Rc1 {[%clk
0:00:12.7]} 28. Rxc1 {[%clk 0:01:03.4]} 28... Qxc1+ {[%clk 0:00:13.6]} 29. Kh2
{[%clk 0:01:03.9]} 29... Qxb1 {[%clk 0:00:13.6]} 30. Qb8+ {[%clk 0:01:03.6]}
30... Kf7 {[%clk 0:00:12.3]} 31. Qh8 {[%clk 0:01:03.2]} 1-0

[Event "Early-Titled-Tuesday-Blitz-September-26-2023"]
[Site "Chess.com"]
[Date "2023.09.26"]
[Round "1"]
[White "AsselLesbekova"]
[Black "Druid24"]
[Result "0-1"]
[WhiteElo "2281"]
[BlackElo "2607"]
[TimeControl "180+1"]
[EndTime "8:06:19 PDT"]
[Termination "Druid24 won by resignation"]

1. e3 {[%clk 0:03:00]} 1... Nf6 {[%clk 0:02:58.6]} 2. d4 {[%clk 0:02:59.6]} 2...
g6 {[%clk 0:02:58.5]} 3. Nf3 {[%clk 0:02:59.2]} 3... Bg7 {[%clk 0:02:58.9]} 4.
c4 {[%clk 0:02:59.2]} 4... O-O {[%clk 0:02:59.4]} 5. Nc3 {[%clk 0:02:59.1]} 5...
d6 {[%clk 0:03:00]} 6. b3 {[%clk 0:02:58.8]} 6... c5 {[%clk 0:03:00.5]} 7. Bb2
{[%clk 0:02:58.6]} 7... Bf5 {[%clk 0:03:00.3]} 8. Bd3 {[%clk 0:02:54.2]} 8...
Bxd3 {[%clk 0:02:58.9]} 9. Qxd3 {[%clk 0:02:55.1]} 9... Nc6 {[%clk 0:02:59.3]}
10. O-O {[%clk 0:02:52.8]} 10... Rc8 {[%clk 0:02:53.9]} 11. Rad1 {[%clk
0:02:48]} 11... cxd4 {[%clk 0:02:53.8]} 12. exd4 {[%clk 0:02:46]} 12... d5
{[%clk 0:02:53.6]} 13. Rfe1 {[%clk 0:02:43.3]} 13... e6 {[%clk 0:02:50.3]} 14.
Ba3 {[%clk 0:02:36]} 14... Re8 {[%clk 0:02:49.9]} 15. Nb5 {[%clk 0:02:35.3]}
15... Bf8 {[%clk 0:02:46.7]} 16. Bxf8 {[%clk 0:02:33.7]} 16... Rxf8 {[%clk
0:02:47.6]} 17. Ne5 {[%clk 0:02:25.4]} 17... a6 {[%clk 0:02:39.6]} 18. Nc3
{[%clk 0:02:13.3]} 18... dxc4 {[%clk 0:02:32.3]} 19. Nxc4 {[%clk 0:02:09.1]}
19... Nb4 {[%clk 0:02:26.2]} 20. Qd2 {[%clk 0:02:09.1]} 20... b5 {[%clk
0:02:24.4]} 21. Ne5 {[%clk 0:02:06.8]} 21... Nbd5 {[%clk 0:02:24.5]} 22. Rc1
{[%clk 0:01:51.7]} 22... Nxc3 {[%clk 0:02:19.2]} 23. Rxc3 {[%clk 0:01:52.6]}
23... Nd5 {[%clk 0:02:18.9]} 24. Rxc8 {[%clk 0:01:45.2]} 24... Qxc8 {[%clk
0:02:19.8]} 25. Rc1 {[%clk 0:01:44.3]} 25... Qb7 {[%clk 0:02:20.1]} 26. g3
{[%clk 0:01:26.2]} 26... Rc8 {[%clk 0:02:18.6]} 27. Rc5 {[%clk 0:01:20.1]} 27...
Rxc5 {[%clk 0:02:16.2]} 28. dxc5 {[%clk 0:01:21]} 28... Qc7 {[%clk 0:02:17.1]}
29. Qd4 {[%clk 0:01:15.6]} 29... b4 {[%clk 0:02:13.2]} 30. Nd3 {[%clk
0:01:04.6]} 30... a5 {[%clk 0:02:07.6]} 31. Qe5 {[%clk 0:00:57.2]} 31... Qc6
{[%clk 0:02:02.7]} 32. Qb8+ {[%clk 0:00:50.5]} 32... Kg7 {[%clk 0:02:02.2]} 33.
Qe5+ {[%clk 0:00:51]} 33... f6 {[%clk 0:02:02.6]} 34. Qe4 {[%clk 0:00:43.3]}
34... Kf7 {[%clk 0:02:00.4]} 35. Nf4 {[%clk 0:00:37.1]} 35... Ke7 {[%clk
0:01:55.5]} 36. Nxd5+ {[%clk 0:00:31.4]} 36... Qxd5 {[%clk 0:01:56.4]} 37. Qe3
{[%clk 0:00:30.1]} 37... Kd7 {[%clk 0:01:56.3]} 38. Qh6 {[%clk 0:00:29.3]} 38...
Qd1+ {[%clk 0:01:46.1]} 39. Kg2 {[%clk 0:00:29.8]} 39... Qh5 {[%clk 0:01:47]}
40. Qg7+ {[%clk 0:00:27.6]} 40... Kc6 {[%clk 0:01:47.5]} 41. Qxf6 {[%clk
0:00:28.1]} 41... Qd5+ {[%clk 0:01:48.1]} 42. Qf3 {[%clk 0:00:27.2]} 42... Kxc5
{[%clk 0:01:49]} 43. h4 {[%clk 0:00:24]} 43... Kd4 {[%clk 0:01:48.6]} 44. g4
{[%clk 0:00:21.5]} 44... Qxf3+ {[%clk 0:01:47.5]} 45. Kxf3 {[%clk 0:00:22.4]}
45... Kc3 {[%clk 0:01:48.4]} 46. h5 {[%clk 0:00:17.2]} 46... Kb2 {[%clk
0:01:48.8]} 47. hxg6 {[%clk 0:00:15.7]} 47... hxg6 {[%clk 0:01:49.7]} 48. Kf4
{[%clk 0:00:16.6]} 48... Kxa2 {[%clk 0:01:49.5]} 49. Kg5 {[%clk 0:00:17.5]}
49... a4 {[%clk 0:01:50]} 50. Kxg6 {[%clk 0:00:18.4]} 50... axb3 {[%clk
0:01:49.7]} 51. f4 {[%clk 0:00:17.8]} 51... b2 {[%clk 0:01:50.6]} 52. Kf7 {[%clk
0:00:17.7]} 52... b1=Q {[%clk 0:01:51.5]} 53. g5 {[%clk 0:00:18.6]} 53... Qf5+
{[%clk 0:01:51.6]} 0-1

[Event "Early-Titled-Tuesday-Blitz-September-26-2023"]
[Site "Chess.com"]
[Date "2023.09.26"]
[Round "1"]
[White "Vesper2018"]
[Black "Zhani-Z"]
[Result "1-0"]
[WhiteElo "2583"]
[BlackElo "2217"]
[TimeControl "180+1"]
[EndTime "8:06:19 PDT"]
[Termination "Vesper2018 won by resignation"]

1. e4 {[%clk 0:02:58.6]} 1... c5 {[%clk 0:02:58.3]} 2. Nc3 {[%clk 0:02:56.3]}
2... e6 {[%clk 0:02:57.3]} 3. Nf3 {[%clk 0:02:47.1]} 3... Nc6 {[%clk 0:02:56.6]}
4. d4 {[%clk 0:02:47]} 4... Nxd4 {[%clk 0:02:55]} 5. Nxd4 {[%clk 0:02:44.1]}
5... cxd4 {[%clk 0:02:55.2]} 6. Qxd4 {[%clk 0:02:44.7]} 6... Qb6 {[%clk
0:02:53.3]} 7. Qxb6 {[%clk 0:02:41.6]} 7... axb6 {[%clk 0:02:54.2]} 8. Nb5
{[%clk 0:02:37.9]} 8... Kd8 {[%clk 0:02:51.6]} 9. Bf4 {[%clk 0:02:35.5]} 9...
Nf6 {[%clk 0:02:46.4]} 10. Bc7+ {[%clk 0:02:31]} 10... Ke7 {[%clk 0:02:43.2]}
11. f3 {[%clk 0:02:21.6]} 11... d5 {[%clk 0:02:33.8]} 12. Bxb6 {[%clk
0:02:10.4]} 12... dxe4 {[%clk 0:02:32.2]} 13. O-O-O {[%clk 0:02:04.4]} 13... Bd7
{[%clk 0:02:10.2]} 14. Kb1 {[%clk 0:01:53.5]} 14... exf3 {[%clk 0:02:04.4]} 15.
gxf3 {[%clk 0:01:52.8]} 15... Nd5 {[%clk 0:02:00]} 16. Bf2 {[%clk 0:01:41.1]}
16... Kf6 {[%clk 0:01:47.4]} 17. Rg1 {[%clk 0:01:29.4]} 17... Bxb5 {[%clk
0:01:13.8]} 18. Bxb5 {[%clk 0:01:28.3]} 18... Bb4 {[%clk 0:00:40.3]} 19. Bh4+
{[%clk 0:01:07.1]} 19... Ke5 {[%clk 0:00:28.2]} 20. Rxg7 {[%clk 0:01:06.5]}
20... f5 {[%clk 0:00:22.4]} 21. Rxb7 {[%clk 0:00:55]} 21... Rhb8 {[%clk
0:00:19.4]} 22. Rxb8 {[%clk 0:00:53.8]} 22... Rxb8 {[%clk 0:00:18.4]} 23. a4
{[%clk 0:00:53.2]} 23... Rd8 {[%clk 0:00:13.3]} 24. Kc1 {[%clk 0:00:43.8]} 24...
Kf4 {[%clk 0:00:08.2]} 25. Bxd8 {[%clk 0:00:43.2]} 1-0

[Event "Early-Titled-Tuesday-Blitz-September-26-2023"]
[Site "Chess.com"]
[Date "2023.09.26"]
[Round "1"]
[White "Emp3rador"]
[Black "BogdanDeac"]
[Result "0-1"]
[WhiteElo "2519"]
[BlackElo "2971"]
[TimeControl "180+1"]
[EndTime "8:06:22 PDT"]
[Termination "BogdanDeac won by resignation"]

1. e4 {[%clk 0:02:50.8]} 1... c6 {[%clk 0:02:59.8]} 2. d4 {[%clk 0:02:49.9]}
2... d5 {[%clk 0:03:00.7]} 3. exd5 {[%clk 0:02:50.7]} 3... cxd5 {[%clk
0:03:00.3]} 4. Bd3 {[%clk 0:02:51.4]} 4... Nf6 {[%clk 0:02:59.7]} 5. h3 {[%clk
0:02:50.5]} 5... Nc6 {[%clk 0:02:59.4]} 6. c3 {[%clk 0:02:50.1]} 6... g6 {[%clk
0:02:59.4]} 7. Qc2 {[%clk 0:02:49.8]} 7... Qc7 {[%clk 0:02:44.1]} 8. Nf3 {[%clk
0:02:02.8]} 8... Bg7 {[%clk 0:02:42.2]} 9. O-O {[%clk 0:02:02.8]} 9... O-O
{[%clk 0:02:42.2]} 10. Re1 {[%clk 0:02:03.1]} 10... Nh5 {[%clk 0:02:34.5]} 11.
Nbd2 {[%clk 0:01:34.8]} 11... f6 {[%clk 0:02:24.1]} 12. Qb3 {[%clk 0:00:48.9]}
12... Nf4 {[%clk 0:02:11.3]} 13. Bf1 {[%clk 0:00:40.2]} 13... e5 {[%clk
0:01:52.2]} 14. dxe5 {[%clk 0:00:23]} 14... fxe5 {[%clk 0:01:50.1]} 15. c4
{[%clk 0:00:17.3]} 15... e4 {[%clk 0:01:28.5]} 16. Ng5 {[%clk 0:00:11.1]} 16...
Na5 {[%clk 0:01:22.7]} 17. Qa3 {[%clk 0:00:07]} 17... h6 {[%clk 0:01:19.1]} 18.
cxd5 {[%clk 0:00:05.7]} 18... hxg5 {[%clk 0:01:03.4]} 19. Nxe4 {[%clk
0:00:06.2]} 19... Nc4 {[%clk 0:01:02]} 20. Bxc4 {[%clk 0:00:05.6]} 20... Qxc4
{[%clk 0:01:01.4]} 21. Nxg5 {[%clk 0:00:06.1]} 21... Nd3 {[%clk 0:00:36.9]} 22.
Re2 {[%clk 0:00:02.9]} 22... Nxc1 {[%clk 0:00:34.2]} 0-1

[Event "Early-Titled-Tuesday-Blitz-September-26-2023"]
[Site "Chess.com"]
[Date "2023.09.26"]
[Round "1"]
[White "chesskov1982"]
[Black "kreonx"]
[Result "1-0"]
[WhiteElo "2792"]
[BlackElo "2470"]
[TimeControl "180+1"]
[EndTime "8:06:23 PDT"]
[Termination "chesskov1982 won by resignation"]

1. d4 {[%clk 0:02:58.9]} 1... Nf6 {[%clk 0:02:58.9]} 2. c4 {[%clk 0:02:54.9]}
2... e6 {[%clk 0:02:59.1]} 3. Nc3 {[%clk 0:02:54.9]} 3... Bb4 {[%clk 0:02:59.2]}
4. Qc2 {[%clk 0:02:54.6]} 4... d5 {[%clk 0:02:57.6]} 5. Nf3 {[%clk 0:02:52]}
5... O-O {[%clk 0:02:56.2]} 6. Bg5 {[%clk 0:02:49.3]} 6... h6 {[%clk 0:02:54.4]}
7. Bh4 {[%clk 0:02:28.3]} 7... c5 {[%clk 0:02:49.8]} 8. dxc5 {[%clk 0:02:14.8]}
8... Na6 {[%clk 0:02:48.1]} 9. e3 {[%clk 0:01:54.8]} 9... Nxc5 {[%clk
0:02:37.4]} 10. Be2 {[%clk 0:01:46.9]} 10... Nce4 {[%clk 0:02:31.8]} 11. O-O
{[%clk 0:01:44.8]} 11... Bxc3 {[%clk 0:02:24.9]} 12. bxc3 {[%clk 0:01:45.7]}
12... g5 {[%clk 0:02:24.5]} 13. Bg3 {[%clk 0:01:45]} 13... Nxg3 {[%clk
0:02:24.9]} 14. hxg3 {[%clk 0:01:42.4]} 14... dxc4 {[%clk 0:02:22.8]} 15. Bxc4
{[%clk 0:01:41.7]} 15... Qc7 {[%clk 0:02:20.6]} 16. Bb3 {[%clk 0:01:41.5]} 16...
b6 {[%clk 0:02:16.6]} 17. c4 {[%clk 0:01:38.9]} 17... Bb7 {[%clk 0:02:15.7]} 18.
Qb2 {[%clk 0:01:36.2]} 18... Nd7 {[%clk 0:02:10.3]} 19. Rfd1 {[%clk 0:01:31.9]}
19... Bxf3 {[%clk 0:02:04.9]} 20. gxf3 {[%clk 0:01:31.8]} 20... Rfd8 {[%clk
0:01:12.3]} 21. f4 {[%clk 0:01:29.5]} 21... e5 {[%clk 0:00:55]} 22. fxg5 {[%clk
0:01:25]} 22... hxg5 {[%clk 0:00:54.2]} 23. Rd5 {[%clk 0:01:22.2]} 23... Nc5
{[%clk 0:00:45.5]} 24. Rxe5 {[%clk 0:01:12.8]} 24... Nd3 {[%clk 0:00:40.7]} 25.
Rxg5+ {[%clk 0:01:09.3]} 25... Kf8 {[%clk 0:00:38.7]} 26. Qg7+ {[%clk
0:01:03.5]} 26... Ke7 {[%clk 0:00:37.3]} 27. Rf5 {[%clk 0:00:56.3]} 27... Rf8
{[%clk 0:00:32.3]} 28. c5 {[%clk 0:00:54.8]} 28... Nxc5 {[%clk 0:00:29.4]} 29.
Rxf7+ {[%clk 0:00:48.3]} 29... Rxf7 {[%clk 0:00:28.8]} 30. Qxf7+ {[%clk
0:00:49.2]} 30... Kd6 {[%clk 0:00:26.2]} 31. Rd1+ {[%clk 0:00:47]} 31... Kc6
{[%clk 0:00:26.5]} 32. Bd5+ {[%clk 0:00:44.3]} 32... Kb5 {[%clk 0:00:25.9]} 33.
Qxc7 {[%clk 0:00:42.2]} 1-0

[Event "Early-Titled-Tuesday-Blitz-September-26-2023"]
[Site "Chess.com"]
[Date "2023.09.26"]
[Round "1"]
[White "Legendinunknown"]
[Black "ChainedDowntohell"]
[Result "1-0"]
[WhiteElo "2832"]
[BlackElo "2482"]
[TimeControl "180+1"]
[EndTime "8:06:24 PDT"]
[Termination "Legendinunknown won on time"]

1. d4 {[%clk 0:02:58]} 1... Nf6 {[%clk 0:02:54.3]} 2. Nf3 {[%clk 0:02:56.6]}
2... b6 {[%clk 0:02:49.2]} 3. Bg5 {[%clk 0:02:34.9]} 3... Bb7 {[%clk 0:02:44.5]}
4. Nbd2 {[%clk 0:02:34.2]} 4... h6 {[%clk 0:02:30.9]} 5. Bxf6 {[%clk 0:02:33.5]}
5... exf6 {[%clk 0:02:31.8]} 6. e4 {[%clk 0:02:33.1]} 6... d5 {[%clk 0:02:15.7]}
7. Bd3 {[%clk 0:02:30.5]} 7... Bd6 {[%clk 0:01:57.5]} 8. O-O {[%clk 0:02:28.6]}
8... O-O {[%clk 0:01:51.3]} 9. exd5 {[%clk 0:02:23.9]} 9... Bxd5 {[%clk
0:01:48.7]} 10. Be4 {[%clk 0:01:58.1]} 10... Bxe4 {[%clk 0:01:30.5]} 11. Nxe4
{[%clk 0:01:59]} 11... f5 {[%clk 0:01:30.7]} 12. Nxd6 {[%clk 0:01:57.5]} 12...
Qxd6 {[%clk 0:01:28.2]} 13. Qd3 {[%clk 0:01:56.4]} 13... g6 {[%clk 0:01:23.3]}
14. Rae1 {[%clk 0:01:54.1]} 14... Nc6 {[%clk 0:01:19.5]} 15. c3 {[%clk
0:01:52.7]} 15... Rfe8 {[%clk 0:01:07.7]} 16. h3 {[%clk 0:01:48.6]} 16... Kg7
{[%clk 0:01:06.5]} 17. a3 {[%clk 0:01:43.8]} 17... Rad8 {[%clk 0:00:46.5]} 18.
Rxe8 {[%clk 0:01:41.8]} 18... Rxe8 {[%clk 0:00:46.1]} 19. Re1 {[%clk 0:01:42.4]}
19... Rxe1+ {[%clk 0:00:41.7]} 20. Nxe1 {[%clk 0:01:43.3]} 20... Qd5 {[%clk
0:00:39.4]} 21. Nf3 {[%clk 0:01:40.7]} 21... b5 {[%clk 0:00:33.5]} 22. Qe2
{[%clk 0:01:36.7]} 22... a5 {[%clk 0:00:22.3]} 23. Nd2 {[%clk 0:01:33.8]} 23...
b4 {[%clk 0:00:15.9]} 24. axb4 {[%clk 0:01:32.8]} 24... axb4 {[%clk 0:00:16.8]}
25. Qc4 {[%clk 0:01:31.4]} 25... Qd6 {[%clk 0:00:10]} 26. Nf3 {[%clk 0:01:29.9]}
26... bxc3 {[%clk 0:00:09.5]} 27. bxc3 {[%clk 0:01:28.6]} 27... Kf6 {[%clk
0:00:04.1]} 28. h4 {[%clk 0:01:27.1]} 28... g5 {[%clk 0:00:03.3]} 29. hxg5+
{[%clk 0:01:26.6]} 29... hxg5 {[%clk 0:00:04.2]} 30. g3 {[%clk 0:01:26.7]} 30...
g4 {[%clk 0:00:04.1]} 31. Nd2 {[%clk 0:01:23.7]} 31... Ne7 {[%clk 0:00:04.6]}
32. Nf1 {[%clk 0:01:20.4]} 32... Nd5 {[%clk 0:00:04.5]} 33. Qd3 {[%clk
0:01:18.1]} 33... Qe6 {[%clk 0:00:03.3]} 34. c4 {[%clk 0:01:14.9]} 34... Ne7
{[%clk 0:00:01.7]} 35. Ne3 {[%clk 0:01:14.6]} 35... Ng6 {[%clk 0:00:01.6]} 36.
d5 {[%clk 0:01:08]} 36... Qe5 {[%clk 0:00:01.7]} 37. c5 {[%clk 0:01:07.9]} 37...
f4 {[%clk 0:00:01.7]} 38. Nxg4+ {[%clk 0:01:07.6]} 1-0

[Event "Early-Titled-Tuesday-Blitz-September-26-2023"]
[Site "Chess.com"]
[Date "2023.09.26"]
[Round "1"]
[White "venturov"]
[Black "SchmakAttack"]
[Result "0-1"]
[WhiteElo "2470"]
[BlackElo "2791"]
[TimeControl "180+1"]
[EndTime "8:06:24 PDT"]
[Termination "SchmakAttack won by checkmate"]

1. e4 {[%clk 0:03:00.9]} 1... e5 {[%clk 0:02:57.5]} 2. Nf3 {[%clk 0:03:00.6]}
2... Nc6 {[%clk 0:02:57.9]} 3. d4 {[%clk 0:03:00.5]} 3... exd4 {[%clk
0:02:57.8]} 4. Nxd4 {[%clk 0:03:01.4]} 4... Qf6 {[%clk 0:02:56.3]} 5. Nf3 {[%clk
0:03:00.7]} 5... Bb4+ {[%clk 0:02:53.9]} 6. c3 {[%clk 0:02:59.3]} 6... Bc5
{[%clk 0:02:54.1]} 7. Be2 {[%clk 0:02:35.9]} 7... Nge7 {[%clk 0:02:48.4]} 8. O-O
{[%clk 0:02:24.4]} 8... d6 {[%clk 0:02:47.9]} 9. Nbd2 {[%clk 0:02:21.8]} 9...
O-O {[%clk 0:02:41.7]} 10. Nb3 {[%clk 0:02:12.7]} 10... Bb6 {[%clk 0:02:41.6]}
11. Nbd4 {[%clk 0:02:00.9]} 11... h6 {[%clk 0:02:32]} 12. Re1 {[%clk 0:01:52.9]}
12... Re8 {[%clk 0:02:26.6]} 13. Be3 {[%clk 0:01:30.6]} 13... Ng6 {[%clk
0:02:18]} 14. Nxc6 {[%clk 0:01:29.2]} 14... bxc6 {[%clk 0:02:18.9]} 15. Bd4
{[%clk 0:01:20.5]} 15... Bxd4 {[%clk 0:02:12]} 16. Nxd4 {[%clk 0:01:21.4]} 16...
c5 {[%clk 0:02:05]} 17. Bb5 {[%clk 0:01:18.1]} 17... Rf8 {[%clk 0:01:55.8]} 18.
Nc2 {[%clk 0:01:16.2]} 18... Rb8 {[%clk 0:01:55.2]} 19. a4 {[%clk 0:01:00.8]}
19... a6 {[%clk 0:01:53.4]} 20. Bf1 {[%clk 0:00:57]} 20... Rxb2 {[%clk
0:01:53.1]} 21. Ne3 {[%clk 0:00:57.1]} 21... Bb7 {[%clk 0:01:42.3]} 22. f3
{[%clk 0:00:40]} 22... Qxc3 {[%clk 0:01:41]} 23. Nd5 {[%clk 0:00:33.8]} 23...
Bxd5 {[%clk 0:01:39.8]} 24. Qxd5 {[%clk 0:00:34.7]} 24... Nf4 {[%clk 0:01:38.2]}
25. Qf5 {[%clk 0:00:25.2]} 25... Qd2 {[%clk 0:01:27.9]} 26. Qg4 {[%clk 0:00:25]}
26... Rfb8 {[%clk 0:01:07.5]} 27. Rad1 {[%clk 0:00:24.4]} 27... Qf2+ {[%clk
0:01:05.5]} 28. Kh1 {[%clk 0:00:23.1]} 28... Ng6 {[%clk 0:01:03.2]} 29. Bxa6
{[%clk 0:00:20.5]} 29... Ra2 {[%clk 0:00:53]} 30. Bb5 {[%clk 0:00:18.9]} 30...
c6 {[%clk 0:00:52.2]} 31. Bxc6 {[%clk 0:00:19.4]} 31... Ne5 {[%clk 0:00:52.3]}
32. Qf4 {[%clk 0:00:09.6]} 32... Qxg2# {[%clk 0:00:49.9]} 0-1